bitfinex/quotes_SOLUSD_20241111
["timestamp","ask_amount","ask_price","bid_price","bid_amount"]
[1731364874296,10.29098239,218.02,217.83,6.1858]
[1731364874598,23.776884,218.03,217.83,6.1858]
[1731364875196,23.776884,218.03,217.84,20.0]
[1731364877793,26.08150941,218.03,217.84,20.0]
[1731364880575,23.776884,218.01,217.84,20.0]
[1731364880902,23.776884,217.99,217.84,20.0]
[1731364881196,23.776884,218.02,217.84,20.0]
[1731364882089,23.776884,218.0,217.83,6.1858]
[1731364882477,20.0,217.99,217.83,6.1858]
[1731364882696,23.776884,217.98,217.83,6.1858]
[1731364883885,23.776884,217.98,217.74,5.25023007]
[1731364883886,20.0,217.84,217.74,5.25023007]
[1731364884097,23.776884,217.79,217.51,6.1858]
[1731364884404,252.66132146,217.77,217.51,6.1858]
[1731364884730,31.40975763,217.76,217.51,6.1858]
[1731364885003,23.776884,217.73,217.51,6.1858]
[1731364885191,23.776884,217.71,217.51,6.1858]
[1731364885394,23.776884,217.69,217.51,6.1858]
[1731364885701,25.61185385,217.74,217.51,6.1858]
[1731364885702,23.776884,217.67,217.51,6.1858]
[1731364885899,23.776884,217.65,217.51,6.1858]
[1731364886102,3.36711231,217.64,217.51,6.1858]
[1731364886277,23.776884,217.65,217.51,6.1858]
[1731364886484,3.35968488,217.64,217.51,6.1858]
[1731364886791,23.776884,217.73,217.51,6.1858]
[1731364886991,8.73585201,217.72,217.52,23.776884]
[1731364887195,23.776884,217.71,217.52,23.776884]
[1731364887380,23.776884,217.71,217.52,23.876884]
[1731364887582,229.37661879,217.76,217.52,23.976884]
[1731364887776,229.37661879,217.76,217.55,0.1]
[1731364888186,229.37661879,217.76,217.55,20.1]
[1731364888387,3.35527018,217.75,217.56,23.776884]
[1731364888585,3.35527018,217.75,217.64,23.776884]
[1731364888782,5.36988373,217.81,217.67,20.0]
[1731364888982,3.35634667,217.8,217.67,20.0]
[1731364889289,5.36988373,217.84,217.67,20.0]
[1731364889290,3.35634667,217.79,217.67,20.0]
[1731364889479,3.35505433,217.78,217.67,20.0]
[1731364889680,5.36988373,217.84,217.67,20.0]
[1731364889887,23.776884,217.83,217.67,20.0]
[1731364890100,3.35459957,217.82,217.67,20.0]
[1731364890388,23.776884,217.84,217.67,20.0]
[1731364890592,3.3538492,217.83,217.67,20.0]
[1731364890806,3.3538492,217.82,217.67,20.0]
[1731364891005,23.776884,217.84,217.67,20.0]
[1731364891305,3.35358454,217.83,217.67,20.0]
[1731364891472,23.776884,217.84,217.67,20.0]
[1731364891680,3.3526799,217.83,217.67,20.0]
[1731364891890,23.776884,217.84,217.67,20.0]
[1731364892097,3.35216249,217.83,217.67,20.0]
[1731364892289,23.776884,217.84,217.67,20.0]
[1731364895787,12.08857605,217.93,217.7,23.776884]
[1731364895788,23.776884,217.9,217.7,23.776884]
[1731364896105,229.37661879,217.95,217.7,23.776884]
[1731364896106,8.70767896,217.89,217.73,20.0]
[1731364896285,13.60736187,217.94,217.73,20.0]
[1731364896589,8.70863609,217.93,217.73,20.0]
[1731364896782,17.54033567,217.92,217.73,20.0]
[1731364896982,8.70863609,217.91,217.73,20.0]
[1731364897189,23.776884,217.89,217.73,20.0]
[1731364897397,3.34947542,217.88,217.73,20.0]
[1731364897587,8.10146624,217.88,217.73,20.0]
[1731364897798,23.776884,217.89,217.73,20.0]
[1731364897988,3.34920236,217.88,217.73,20.0]
[1731364898183,23.776884,217.89,217.73,20.0]
[1731364898384,3.34860541,217.88,217.72,23.776884]
[1731364898686,12.27318187,217.87,217.72,23.776884]
[1731364898887,5.58107605,217.99,217.76,23.776884]
[1731364899189,3.34962895,217.98,217.76,23.776884]
[1731364899397,3.34962895,217.98,217.76,23.876884]
[1731364899606,5.35940632,218.01,217.78,0.1]
[1731364899788,3.35039929,218.0,217.8,0.1]
[1731364900115,5.36063887,218.03,217.83,20.0]
[1731364900297,3.35112075,218.02,217.83,20.0]
[1731364900616,3.35112075,218.01,217.83,20.0]
[1731364900909,229.37661879,218.04,217.83,20.0]
[1731364901097,3.34972996,218.03,217.83,20.0]
[1731364901507,3.34972996,218.02,217.83,20.0]
[1731364901696,229.37661879,218.04,217.83,20.0]
[1731364901895,3.34971369,218.03,217.83,20.0]
[1731364902095,23.776884,218.01,217.83,20.0]
[1731364902310,23.776884,218.03,217.83,20.0]
[1731364902492,23.776884,217.99,217.83,20.0]
[1731364905202,5.58271491,218.13,217.87,0.1]
[1731364905515,3.35299556,218.12,217.9,0.1]
[1731364905897,3.35299556,218.11,217.9,23.876884]
[1731364906103,4.75169248,218.16,217.94,20.1]
[1731364906301,3.35238632,218.15,217.94,20.1]
[1731364906510,3.35202518,218.14,217.94,20.1]
[1731364906712,10.11325496,218.22,217.96,0.1]
[1731364906892,3.35118559,218.21,217.94,20.0]
[1731364907093,3.35118559,218.2,217.94,20.0]
[1731364907496,23.776884,218.19,217.94,20.0]
[1731364907822,23.776884,218.17,217.94,20.0]
[1731364908020,3.35118559,218.16,217.94,20.0]
[1731364908210,27.12806959,218.15,217.94,20.0]
[1731364908414,23.776884,218.15,217.94,20.0]
[1731364908619,23.776884,218.13,217.94,20.0]
[1731364909618,3.34631131,218.12,217.94,20.0]
[1731364909815,23.776884,218.11,217.94,20.0]
[1731364910020,23.776884,218.13,217.94,20.0]
[1731364916621,23.776884,218.11,217.94,20.0]
[1731364917011,23.776884,218.13,217.94,20.0]
[1731364917204,23.776884,218.11,217.94,20.0]
[1731364919922,23.776884,218.13,217.94,20.0]
[1731364920133,23.776884,218.11,217.94,20.0]
[1731364920738,23.776884,218.13,217.94,20.0]
[1731364921124,3.34011741,218.12,217.94,20.0]
[1731364921304,3.34011741,218.11,217.94,20.0]
[1731364921513,20.0,218.12,217.93,6.1858]
[1731364921724,23.776884,218.09,217.93,6.1858]
[1731364922025,23.776884,218.11,217.93,6.1858]
[1731364922228,23.776884,218.09,217.93,6.1858]
[1731364922814,23.776884,218.12,217.93,6.1858]
[1731364923012,23.776884,218.13,217.94,20.0]
[1731364923225,23.776884,218.11,217.94,20.0]
[1731364923627,23.776884,218.13,217.94,20.0]
[1731364923810,23.776884,218.11,217.94,20.0]
[1731364924220,23.776884,218.13,217.94,20.0]
[1731364924420,23.776884,218.11,217.94,20.0]
[1731364924828,23.776884,218.13,217.94,20.0]
[1731364925224,23.776884,218.11,217.94,20.0]
[1731364925430,23.776884,218.13,217.94,20.0]
[1731364926744,4.75233895,218.17,217.95,6.158]
[1731364926940,0.1,218.27,217.95,6.158]
[1731364926941,5.33844562,218.22,218.0,20.0]
[1731364927255,15.5256,218.23,218.0,20.0]
[1731364927407,3.33618455,218.22,218.0,20.0]
[1731364927609,9.51961527,218.21,218.0,20.0]
[1731364927809,3.33618455,218.2,217.99,6.158]
[1731364928029,3.33618455,218.19,217.99,6.158]
[1731364928231,5.33618365,218.22,218.0,20.0]
[1731364928417,11.99697096,218.21,218.0,20.0]
[1731364928618,3.33394967,218.2,217.99,6.158]
[1731364928845,3.33394967,218.19,217.99,6.158]
[1731364929130,23.776884,218.19,217.99,6.158]
[1731364929330,23.776884,218.17,217.99,6.158]
[1731364929517,23.776884,218.14,217.99,6.158]
[1731364929716,23.776884,218.12,217.99,6.158]
[1731364929931,23.776884,218.19,218.0,20.0]
[1731364930143,23.776884,218.17,218.0,20.0]
[1731364930633,23.776884,218.19,218.0,20.0]
[1731364930835,23.776884,218.17,218.0,20.0]
[1731364931034,23.776884,218.19,218.0,20.0]
[1731364931241,23.776884,218.17,218.0,20.0]
[1731364931616,23.776884,218.19,218.0,20.0]
[1731364931840,23.776884,218.17,218.0,20.0]
[1731364932336,23.776884,218.15,218.0,20.0]
[1731364932533,23.776884,218.17,218.0,20.0]
[1731364932714,23.776884,218.15,218.0,20.0]
[1731364932914,23.776884,218.17,218.0,20.0]
[1731364933113,23.776884,218.15,218.0,20.0]
[1731364934426,3.3464534,218.14,218.0,20.0]
[1731364934633,23.776884,218.15,218.0,20.0]
[1731364935046,3.34652117,218.14,218.0,20.0]
[1731364935243,3.34652117,218.13,218.0,20.0]
[1731364935420,23.776884,218.12,218.0,20.0]
[1731364937637,231.28504736,218.2,218.0,20.0]
[1731364937937,28.70905513,218.19,218.0,20.0]
[1731364938246,8.70905513,218.18,218.0,20.0]
[1731364938644,8.71484776,218.17,218.0,20.0]
[1731364938829,8.71484776,218.16,218.0,20.0]
[1731364939030,3.35186452,218.15,218.0,20.0]
[1731364939235,23.776884,218.14,218.0,20.0]
[1731364939631,23.776884,218.15,218.0,20.0]
[1731364942241,3.36404483,218.14,218.02,20.0]
[1731364943844,3.36404483,218.13,218.02,20.0]
[1731364944727,228.90946619,218.21,218.02,20.0]
[1731364944954,3.38075476,218.12,218.02,20.0]
[1731364945157,23.776884,218.17,218.02,20.0]
[1731364945341,23.776884,218.15,218.02,20.0]
[1731364945531,3.38098091,218.14,218.02,20.0]
[1731364945734,3.38098091,218.13,218.02,20.0]
[1731364946043,3.38066849,218.12,218.02,20.0]
[1731364946231,23.776884,218.15,218.02,20.0]
[1731364946542,3.38201318,218.14,218.02,20.0]
[1731364946747,23.776884,218.15,218.02,20.0]
[1731364947052,3.38121644,218.14,218.02,20.0]
[1731364947631,3.38296309,218.13,218.02,20.0]
[1731364948030,23.776884,218.15,218.02,20.0]
[1731364948236,3.38423938,218.14,218.02,20.0]
[1731364948550,3.38423938,218.13,218.02,20.0]
[1731364948754,23.776884,218.15,218.02,20.0]
[1731364948960,3.38250989,218.14,218.02,20.0]
[1731364949251,3.38250989,218.13,218.02,20.0]
[1731364949558,23.776884,218.15,218.02,20.0]
[1731364949731,3.3835917,218.14,218.02,20.0]
[1731364949931,23.776884,218.15,218.02,20.0]
[1731364950132,3.38392846,218.14,218.02,20.0]
[1731364950333,3.38392846,218.13,218.02,20.0]
[1731364950553,23.776884,218.15,218.02,20.0]
[1731364950736,3.38516129,218.14,218.02,20.0]
[1731364950939,23.776884,218.15,218.02,20.0]
[1731364952942,4.74200789,218.26,218.01,6.1858]
[1731364952943,4.74200789,218.26,218.04,20.0]
[1731364953152,3.38422548,218.25,218.04,20.1]
[1731364953457,3.38422548,218.24,218.04,20.0]
[1731364953662,3.38422548,218.23,218.04,20.0]
[1731364953961,3.38422548,218.22,218.04,20.0]
[1731364954133,23.776884,218.2,218.04,20.0]
[1731364955460,23.776884,218.2,218.06,20.0]
[1731364955855,23.776884,218.27,218.06,20.0]
[1731364956053,23.776884,218.25,218.06,20.0]
[1731364956361,3.37962287,218.24,218.06,20.0]
[1731364956559,23.776884,218.22,218.06,20.0]
[1731364959066,231.19470527,218.28,218.06,20.0]
[1731364959267,32.55436287,218.27,218.06,20.1]
[1731364959475,23.776884,218.25,218.06,20.1]
[1731364959645,23.776884,218.23,218.06,20.1]
[1731364959848,23.776884,218.25,218.06,20.0]
[1731364960050,23.776884,218.23,218.06,20.0]
[1731364960249,23.776884,218.25,218.06,20.0]
[1731364960755,23.776884,218.27,218.06,20.0]
[1731364961065,23.776884,218.25,218.06,20.0]
[1731364961270,23.776884,218.27,218.06,20.0]
[1731364961462,23.776884,218.25,218.06,20.0]
[1731364961665,23.776884,218.27,218.07,23.776884]
[1731364961852,23.776884,218.25,218.08,20.0]
[1731364962459,8.65112436,218.24,218.08,20.0]
[1731364962673,23.776884,218.25,218.09,6.1858]
[1731364962963,23.776884,218.25,218.1,20.0]
[1731364963651,23.776884,218.27,218.1,20.0]
[1731364967365,23.776884,218.25,218.1,20.0]
[1731364967667,23.776884,218.27,218.1,20.0]
[1731364968453,23.776884,218.25,218.1,20.0]
[1731364968663,23.776884,218.27,218.1,20.0]
[1731364969869,9.09308717,218.26,218.1,20.0]
[1731364970084,23.776884,218.27,218.1,20.0]
[1731364973779,23.776884,218.25,218.1,20.0]
[1731364973964,23.776884,218.27,218.1,20.0]
[1731364978864,23.776884,218.25,218.1,20.0]
[1731364979064,23.776884,218.27,218.1,20.0]
[1731364979681,23.776884,218.3,218.1,20.0]
[1731364979978,23.776884,218.28,218.1,20.0]
[1731364982478,23.776884,218.26,218.1,20.0]
[1731364983971,20.0,218.33,218.11,23.776884]
[1731364984194,8.79982835,218.32,218.12,20.0]
[1731364984364,3.38454936,218.31,218.12,20.0]
[1731364984566,3.38454936,218.3,218.12,20.0]
[1731364984886,3.38454936,218.29,218.12,20.0]
[1731364985061,3.38454936,218.28,218.12,20.0]
[1731364985384,5.41527899,218.32,218.12,20.0]
[1731364985385,23.776884,218.32,218.12,20.0]
[1731364985569,23.776884,218.3,218.12,20.0]
[1731364985770,3.38528985,218.29,218.12,20.0]
[1731364986282,23.776884,218.28,218.12,20.0]
[1731364986582,23.776884,218.3,218.12,20.0]
[1731364986783,23.776884,218.28,218.12,20.0]
[1731364987656,23.776884,218.32,218.13,23.776884]
[1731364987880,23.776884,218.3,218.14,20.0]
[1731364988084,3.38557328,218.29,218.15,6.1858]
[1731364988263,228.74501383,218.46,218.16,43.776884]
[1731364988462,3.38661098,218.37,218.18,43.776884]
[1731364988665,3.38661098,218.36,218.2,20.0]
[1731364988885,3.38661098,218.35,218.2,25.53168078]
[1731364989083,3.38661098,218.34,218.2,25.53168078]
[1731364989283,17.95739868,218.38,218.2,25.53168078]
[1731364989493,23.776884,218.36,218.2,25.53168078]
[1731364989814,23.776884,218.34,218.2,25.53168078]
[1731364990287,23.776884,218.37,218.22,20.0]
[1731364990465,23.776884,218.35,218.22,20.0]
[1731364990667,3.3898656,218.34,218.22,20.0]
[1731364990883,5.4237797,218.36,218.22,20.0]
[1731364991084,23.776884,218.37,218.22,20.0]
[1731364991285,23.776884,218.35,218.22,20.0]
[1731364991588,3.38984573,218.34,218.22,20.0]
[1731364991776,5.42352845,218.36,218.22,20.0]
[1731364991976,3.38975532,218.35,218.22,20.0]
[1731364992188,3.38975532,218.34,218.23,23.776884]
[1731364992483,5.42295561,218.4,218.23,23.776884]
[1731364992786,3.38891651,218.39,218.23,23.776884]
[1731364992981,3.38891651,218.38,218.24,20.0]
[1731364993171,11.1875256,218.41,218.24,20.0]
[1731364993365,23.776884,218.39,218.24,20.0]
[1731364993688,8.81187212,218.38,218.24,20.0]
[1731364994188,3.38891651,218.38,218.25,23.776884]
[1731364994481,3.38891651,218.37,218.25,23.776884]
[1731364994683,5.4260066,218.41,218.25,23.776884]
[1731364994886,3.39245061,218.4,218.25,23.776884]
[1731364995077,3.39245061,218.39,218.25,23.776884]
[1731364995272,17.98664159,218.42,218.23,20.0]
[1731364995593,3.39234825,218.41,218.23,20.0]
[1731364996078,3.39234825,218.41,218.24,23.776884]
[1731364997791,3.39234825,218.41,218.25,6.1858]
[1731364998373,3.39242707,218.4,218.25,6.1858]
[1731364998573,3.39242707,218.39,218.25,6.1858]
[1731364998797,23.776884,218.41,218.25,6.1858]
[1731364999096,3.39356085,218.4,218.26,20.0]
[1731364999296,14.98463504,218.39,218.26,20.0]
[1731364999490,23.776884,218.41,218.26,20.0]
[1731364999695,3.39271466,218.4,218.26,20.0]
[1731364999896,3.39271466,218.39,218.26,20.0]
[1731365000193,23.776884,218.41,218.26,20.0]
[1731365000389,3.39204175,218.4,218.26,20.0]
[1731365000578,3.39204175,218.39,218.26,20.0]
[1731365000778,23.776884,218.41,218.26,20.0]
[1731365001000,3.39228212,218.4,218.26,20.0]
[1731365001205,3.39228212,218.39,218.26,20.0]
[1731365001384,23.776884,218.41,218.26,20.0]
[1731365001703,3.39211334,218.4,218.26,20.0]
[1731365001901,3.39211334,218.39,218.26,20.0]
[1731365002097,23.776884,218.41,218.26,20.0]
[1731365002289,3.39188384,218.4,218.26,20.0]
[1731365002490,3.39188384,218.39,218.26,20.0]
[1731365002697,23.776884,218.41,218.26,20.0]
[1731365003002,3.39165534,218.4,218.26,20.0]
[1731365003203,23.776884,218.41,218.26,20.0]
[1731365003388,3.39174364,218.4,218.26,20.0]
[1731365003575,3.39165348,218.39,218.26,20.0]
[1731365003777,23.776884,218.41,218.26,20.0]
[1731365003977,3.39210959,218.4,218.26,20.0]
[1731365004201,23.776884,218.41,218.26,20.0]
[1731365004382,3.39298576,218.4,218.27,23.776884]
[1731365004584,23.776884,218.44,218.27,23.776884]
[1731365004823,3.39320621,218.43,218.27,23.776884]
[1731365004989,3.39320621,218.42,218.27,23.776884]
[1731365005195,3.39320621,218.41,218.27,23.776884]
[1731365005391,3.39320621,218.4,218.27,23.776884]
[1731365005584,23.776884,218.44,218.27,23.776884]
[1731365006209,3.39260052,218.43,218.27,23.776884]
[1731365006400,3.39260052,218.42,218.27,23.776884]
[1731365006706,3.39260052,218.41,218.27,23.776884]
[1731365006906,23.776884,218.44,218.27,23.776884]
[1731365007084,3.39282199,218.43,218.27,23.776884]
[1731365007395,12.77114169,218.42,218.27,23.776884]
[1731365007573,3.39282199,218.41,218.27,23.776884]
[1731365007778,3.39282199,218.43,218.27,23.776884]
[1731365007986,3.39282199,218.42,218.27,23.776884]
[1731365008186,3.39282199,218.41,218.27,23.776884]
[1731365008382,3.39282199,218.4,218.27,23.776884]
[1731365008617,3.39282199,218.43,218.27,23.776884]
[1731365008906,3.39261402,218.42,218.27,23.776884]
[1731365009108,3.39261402,218.41,218.27,23.776884]
[1731365009309,3.39261402,218.4,218.27,23.776884]
[1731365009511,23.776884,218.44,218.27,23.776884]
[1731365009812,3.3922745,218.43,218.27,23.776884]
[1731365010007,3.3922745,218.42,218.27,23.776884]
[1731365010204,3.3922745,218.41,218.27,14.80822809]
[1731365010408,23.776884,218.42,218.25,6.1858]
[1731365010706,14.56263215,218.41,218.25,11.71748078]
[1731365010885,23.776884,218.44,218.25,11.71748078]
[1731365011087,23.776884,218.42,218.25,11.71748078]
[1731365011389,3.392127,218.41,218.25,11.71748078]
[1731365011582,23.776884,218.42,218.25,11.71748078]
[1731365011814,3.39195622,218.41,218.25,11.71748078]
[1731365011996,23.776884,218.44,218.25,11.71748078]
[1731365012199,23.776884,218.42,218.25,11.71748078]
[1731365012497,3.39178956,218.41,218.26,20.0]
[1731365012694,12.94269582,218.4,218.26,20.0]
[1731365012884,23.776884,218.44,218.26,20.0]
[1731365013092,23.776884,218.42,218.26,20.0]
[1731365013292,3.3902495,218.41,218.26,20.0]
[1731365013496,23.776884,218.42,218.26,20.0]
[1731365013688,3.39042081,218.4,218.26,20.0]
[1731365014311,23.776884,218.45,218.26,20.0]
[1731365014488,23.776884,218.43,218.26,20.0]
[1731365014693,23.776884,218.41,218.26,20.0]
[1731365015215,23.776884,218.41,218.25,14.07464302]
[1731365015386,3.39033075,218.4,218.25,14.07464302]
[1731365015585,23.776884,218.41,218.25,14.07464302]
[1731365015785,3.39033157,218.4,218.25,14.07464302]
[1731365016005,23.776884,218.41,218.25,14.07464302]
[1731365016207,3.39039098,218.4,218.25,14.07464302]
[1731365016412,23.776884,218.41,218.25,14.07464302]
[1731365016619,3.39046343,218.4,218.25,14.07464302]
[1731365016921,23.776884,218.41,218.25,14.07464302]
[1731365017115,3.39059368,218.4,218.26,20.0]
[1731365017322,23.776884,218.41,218.26,26.05818078]
[1731365017617,3.39075357,218.4,218.26,26.05818078]
[1731365017911,23.776884,218.41,218.26,6.05818078]
[1731365018115,3.39104702,218.4,218.26,6.05818078]
[1731365018293,23.776884,218.41,218.26,6.05818078]
[1731365018494,3.39144813,218.4,218.26,6.05818078]
[1731365018700,23.776884,218.41,218.26,6.05818078]
[1731365018899,3.39141413,218.4,218.26,6.05818078]
[1731365019101,23.776884,218.41,218.26,6.05818078]
[1731365019289,3.3908179,218.4,218.26,6.05818078]
[1731365019491,23.776884,218.41,218.26,6.05818078]
[1731365020617,3.39240652,218.4,218.26,6.05818078]
[1731365020811,23.776884,218.41,218.26,6.05818078]
[1731365021502,3.39313271,218.4,218.26,6.05818078]
[1731365021816,23.776884,218.41,218.26,6.05818078]
[1731365022113,3.39307732,218.4,218.26,6.05818078]
[1731365022312,23.776884,218.41,218.26,6.05818078]
[1731365022503,3.39377875,218.4,218.26,6.05818078]
[1731365022812,23.776884,218.41,218.26,6.05818078]
[1731365023192,3.39378967,218.4,218.26,6.05818078]
[1731365023393,23.776884,218.41,218.26,6.05818078]
[1731365023693,3.39449472,218.4,218.26,11.64142752]
[1731365023889,23.776884,218.41,218.26,11.64142752]
[1731365024116,3.3920572,218.4,218.26,11.64142752]
[1731365024421,23.776884,218.41,218.26,11.64142752]
[1731365024626,3.39296909,218.4,218.26,11.64142752]
[1731365024801,3.39296909,218.39,218.26,11.64142752]
[1731365024995,23.776884,218.41,218.26,11.64142752]
[1731365025201,3.39249482,218.4,218.26,11.64142752]
[1731365025399,23.776884,218.41,218.26,11.64142752]
[1731365025703,3.39315012,218.4,218.26,11.64142752]
[1731365025913,23.776884,218.41,218.26,11.64142752]
[1731365026216,3.39311619,218.4,218.27,5.58324674]
[1731365026421,3.39401136,218.39,218.27,5.58324674]
[1731365026715,23.776884,218.41,218.27,5.58324674]
[1731365026911,3.3939552,218.4,218.27,5.58324674]
[1731365027104,23.776884,218.41,218.27,5.58324674]
[1731365027305,3.39404748,218.4,218.27,5.58324674]
[1731365027504,23.776884,218.41,218.27,5.58324674]
[1731365027711,3.39520894,218.4,218.27,5.58324674]
[1731365027915,23.776884,218.41,218.27,5.58324674]
[1731365028213,3.39450531,218.4,218.27,5.58324674]
[1731365028516,3.39450531,218.39,218.27,5.58324674]
[1731365028810,23.776884,218.41,218.27,5.58324674]
[1731365029012,3.39660457,218.4,218.26,6.05818078]
[1731365029211,3.39660457,218.39,218.25,6.1858]
[1731365029410,3.39660457,218.38,218.25,6.1858]
[1731365029609,3.39660457,218.37,218.25,6.1858]
[1731365029815,23.776884,218.41,218.25,6.1858]
[1731365030007,3.39786696,218.4,218.25,6.1858]
[1731365030208,3.39786696,218.39,218.25,6.1858]
[1731365030419,3.39786696,218.38,218.25,6.1858]
[1731365030623,23.776884,218.41,218.25,6.1858]
[1731365030818,3.39899936,218.4,218.25,6.1858]
[1731365031002,3.39899936,218.39,218.25,6.1858]
[1731365031200,23.776884,218.41,218.25,6.1858]
[1731365031519,3.40089627,218.4,218.25,6.1858]
[1731365032110,10.83245823,218.39,218.25,6.1858]
[1731365032307,3.40089627,218.38,218.21,5.50897067]
[1731365032507,23.776884,218.41,218.22,29.06228629]
[1731365032702,12.98943994,218.4,218.24,23.776884]
[1731365032908,3.40325087,218.39,218.24,23.776884]
[1731365033107,3.40325087,218.38,218.24,23.776884]
[1731365033318,3.40325087,218.37,218.24,23.776884]
[1731365033607,23.776884,218.41,218.24,23.776884]
[1731365033802,23.776884,218.39,218.23,5.74472838]
[1731365034015,3.40517314,218.38,218.23,5.74472838]
[1731365034213,3.40517314,218.37,218.23,5.74472838]
[1731365034413,3.40517314,218.36,218.23,5.74472838]
[1731365034719,23.776884,218.39,218.23,5.74472838]
[1731365034923,3.40721134,218.38,218.23,5.74472838]
[1731365035109,23.776884,218.39,218.23,5.74472838]
[1731365035110,3.40721134,218.37,218.23,5.74472838]
[1731365035420,3.40721134,218.36,218.23,5.74472838]
[1731365035620,23.776884,218.39,218.23,5.74472838]
[1731365035827,3.40859457,218.38,218.23,5.74472838]
[1731365036123,12.46939952,218.37,218.23,11.03013067]
[1731365036304,23.776884,218.39,218.23,11.03013067]
[1731365036305,3.4083993,218.36,218.23,11.03013067]
[1731365036505,23.776884,218.39,218.24,5.28540229]
[1731365036722,3.40954536,218.38,218.24,5.28540229]
[1731365036923,3.40954536,218.37,218.24,5.28540229]
[1731365037226,3.40954536,218.36,218.24,5.28540229]
[1731365037420,3.40954536,218.35,218.24,5.28540229]
[1731365037609,23.776884,218.39,218.24,5.28540229]
[1731365037812,3.41110322,218.38,218.24,5.28540229]
[1731365038117,3.41110322,218.37,218.24,5.28540229]
[1731365038309,3.41110322,218.36,218.24,5.28540229]
[1731365038497,3.41110322,218.35,218.24,5.28540229]
[1731365038701,23.776884,218.39,218.24,5.28540229]
[1731365038902,3.41207784,218.38,218.24,5.28540229]
[1731365039102,3.41207784,218.37,218.24,5.28540229]
[1731365039320,3.41207784,218.36,218.24,5.28540229]
[1731365039524,3.4120588,218.35,218.24,5.28540229]
[1731365039727,23.776884,218.39,218.24,5.28540229]
[1731365040306,9.39909933,218.38,218.24,5.28540229]
[1731365040527,23.776884,218.39,218.24,5.28540229]
[1731365041026,20.0,218.38,218.21,2.32561163]
[1731365041231,23.776884,218.37,218.14,5.74472838]
[1731365041930,23.776884,218.37,218.14,10.64840718]
[1731365042113,30.176084,218.35,218.14,10.64840718]
[1731365042610,23.776884,218.33,218.14,5.74472838]
[1731365042799,23.776884,218.31,218.14,5.74472838]
[1731365044107,23.776884,218.31,218.11,4.9036788]
[1731365044624,23.776884,218.29,218.09,5.74472838]
[1731365045016,39.979984,218.29,218.09,5.74472838]
[1731365045635,23.776884,218.27,218.09,5.74472838]
[1731365046235,23.776884,218.28,218.09,5.74472838]
[1731365047134,23.776884,218.26,218.0,8.74245438]
[1731365047315,16.2031,218.29,218.0,8.74245438]
[1731365047316,23.776884,218.24,218.01,5.74472838]
[1731365047516,23.776884,218.22,218.01,5.74472838]
[1731365048409,23.776884,218.2,218.01,10.64840718]
[1731365048611,23.776884,218.2,218.02,5.74472838]
[1731365049828,23.776884,218.2,218.03,23.776884]
[1731365052417,23.776884,218.21,218.03,23.776884]
[1731365056832,23.776884,218.22,218.03,23.776884]
[1731365057037,23.776884,218.24,218.03,23.776884]
[1731365057226,23.776884,218.22,218.03,23.776884]
[1731365060542,28.73787977,218.24,218.03,5.74472838]
[1731365060749,20.0,218.24,218.05,23.776884]
[1731365061750,23.776884,218.23,218.05,23.776884]
[1731365064540,23.776884,218.23,218.05,28.6805628]
[1731365066447,23.776884,218.23,218.06,4.9036788]
[1731365066655,23.776884,218.24,218.07,23.776884]
[1731365066854,23.776884,218.24,218.08,4.9036788]
[1731365067029,23.776884,218.24,218.09,6.24956172]
[1731365068244,16.2031,218.29,218.09,6.24956172]
[1731365068447,20.0,218.28,218.09,11.15324052]
[1731365068749,20.0,218.26,218.1,28.6805628]
[1731365071130,20.0,218.26,218.11,6.24956172]
[1731365071335,20.0,218.26,218.12,5.46990102]
[1731365071652,20.0,218.26,218.12,11.71946274]